Cogmind - Beta 15 @@@ ROGUE MODE // 2025.05.13 @ 22:22:27 Player: Epsilon 11 Result: Destroyed by 92-O32(R) with Subdweller Laser Performance ------------- Evolutions (0) 0 Regions Visited (3) 600 Robots Destroyed (14) 70 Value Destroyed (441) 441 Prototype IDs (12) 240 Alien Tech Used (0) 0 Bonus (-44) -44 TOTAL SCORE: 1307 Bonus ------- Friendly Fire -44 Cogmind --------- Core Integrity 0/250 Matter 13/300 Energy 249/250 System Corruption 0% Temperature Cool (6) Movement Rolling (110) Location -10/Subcaves Parts ------- > --- POWER (1) -------- Ion Engine > --- PROPULSION (2) --- Subdweller Monowheel > --- UTILITY (2) ------ Improved Heat Sink Small Storage Unit > --- WEAPON (2) ------- Battle Cannon > --- INVENTORY (8) ---- Subdweller Power Source Machine Analyzer Gun Armor Decoy Drone Bay (0/16) Subdweller Shrapnel Launcher Hammer Peak State ------------ > --- POWER ------------ Ion Engine > --- PROPULSION ------- Compact Wheel Compact Wheel > --- UTILITY ---------- Decoy Drone Bay > --- WEAPON ----------- Battle Cannon Battle Cannon > --- INVENTORY -------- Improved Heat Sink Small Storage Unit Large Matter Pod Mining Laser Hammer [Rating: 21] Favorites ----------- Power Ion Engine Engine Ion Engine Propulsion Compact Wheel Wheel Compact Wheel Utility Small Storage Unit Device Improved Heat Sink Storage Small Storage Unit Weapon Battle Cannon Energy Gun EM Pulse Gun Ballistic Cannon Battle Cannon Launcher Subdweller Shrapnel Launcher Special Weapon Mining Laser Impact Weapon Hammer Build | -11 -10 -10 -10 ------- Run | Yrd Mat Min Sub Slots Evolved . | . . . . Power . | . . . . Propulsion . | . . . . Utility . | . . . . Weapon . | . . . . Parts Attached 17 | 6 1 5 5 Power 2 | 1 . 1 . Engine 2 | 1 . 1 . Core . | . . . . Reactor . | . . . . Propulsion 4 | 2 . 1 1 Treads . | . . . . Leg . | . . . . Wheel 4 | 2 . 1 1 Hover . | . . . . Flight . | . . . . Utility 3 | 1 1 1 . Device 2 | . 1 1 . Storage 1 | 1 . . . Processor . | . . . . Hackware . | . . . . Protection . | . . . . Artifact . | . . . . Weapon 8 | 2 . 2 4 Energy Gun 3 | 2 . 1 . Energy Cannon . | . . . . Ballistic Gun . | . . . . Ballistic Cannon 2 | . . . 2 Launcher 1 | . . . 1 Special Weapon 1 | . . . 1 Impact Weapon 1 | . . 1 . Slashing Weapon . | . . . . Piercing Weapon . | . . . . Special Melee Weapon . | . . . . Unidentified Prototypes 1 | . . 1 . Parts Lost 6 | . 2 1 3 Power 1 | . 1 . . Propulsion 3 | . . 1 2 Utility . | . . . . Weapon 2 | . 1 . 1 Highest Loss Streak 3 | . 2 1 3 To Critical Strikes . | . . . . Average Backups 4 | . 1 1 6 Power . | . . . . Propulsion . | . . . . Utility 1 | . . . 3 Weapon 1 | . . . 2 Tool/Special . | . . . . Unused Backups 5 | . . . 5 Power 1 | . . . 1 Propulsion . | . . . . Utility 3 | . . . 3 Weapon 1 | . . . 1 Tool/Special . | . . . . Average Slot Usage (%) 89 | . 78 87 93 Engine 11 | . 7 6 14 Wheel 27 | . 28 26 27 Device 10 | . 5 14 11 Storage 12 | . 14 13 11 Energy Gun 10 | . 21 20 3 Ballistic Cannon 12 | . . . 20 Launcher 1 | . . . 3 Impact Weapon 1 | . . 5 . Peak Build Rating 21 | 6 7 19 21 Average Rating 11 | 4 6 8 14 On Entrance 8 | . 6 7 19 Naked Turns . | . . . . Heaviest Build 25 | 14 14 23 25 Greatest Support 36 | 26 26 32 36 Greatest Overweight (x) . | . . . . Average Overweight (x) . | . . . . Largest Inventory Capacity 8 | 8 8 8 8 Average Capacity 7 | 7 8 7 7 Most Carried 8 | . 2 5 8 Average Carried 5 | . 1 2 7 Final Capacity 8 | 8 8 5 8 Final Carried 7 | . 2 5 7 Class Distribution -------------------- 100% | Mutant Dominant Class ---------------- Mutant | -10/Materials Mutant | -10/Mines Mutant | -10/Subcaves Resources | -11 -10 -10 -10 ----------- Run | Yrd Mat Min Sub Matter Collected 616 | 241 17 96 262 Remotely . | . . . . Salvage Created 339 | . 101 43 195 Parts 30 | . 7 1 22 Haulers Intercepted . | . . . . Recyclers Shooed . | . . . . Parts Field Recycled . | . . . . Retrieved Matter . | . . . . Parts Self-Destructed . | . . . . Prevented . | . . . . Kills | -11 -10 -10 -10 ------- Run | Yrd Mat Min Sub Combat Hostiles Destroyed 14 | . 3 3 8 Guns 4 | . 3 1 . Cannons 4 | . . . 4 AOE 5 | . . 1 4 Classes Destroyed 4 | . 2 . 2 Swarmer 4 | . 1 3 . Grunt 2 | . 2 . . Subdweller 8 | . . . 8 Scientist 1 | . . . 1 Best Kill Streak 3 | . 2 3 2 Combat Bots Only 3 | . 2 3 2 Max Kills in Single Turn 2 | . 1 1 2 Gunslinging . | . . . . Exploded 2 | . . 1 2 Melee . | . . . . Uniques/NPCs Destroyed . | . . . . Combat | -11 -10 -10 -10 -------- Run | Yrd Mat Min Sub Hostile Shots Fired 86 | . 23 18 45 Missed 31 | . 6 5 20 Hits 55 | . 17 13 25 Projectile 55 | . 17 13 25 Damage Taken 840 | 5 208 104 523 Core 252 | . 32 12 208 Absorbed by Shields . | . . . . Core Remaining (%) 100 | 100 . . . Volleys Fired 43 | . 9 6 28 Largest 2 | . 2 1 2 Hottest 100 | . 80 40 100 Shots Fired 64 | . 11 6 47 Gun 17 | . 11 6 . Cannon 35 | . . . 35 Launcher 9 | . . . 9 Special 3 | . . . 3 Kinetic 44 | . . . 44 Thermal 3 | . . . 3 Explosive . | . . . . Electromagnetic 17 | . 11 6 . Robot Hit Streak 12 | . 6 2 12 Robot Miss Streak 4 | . 4 2 1 Penetration Max . | . . . . Secondary Targets . | . . . . Shots Hit Robots 41 | . 7 3 31 Core Hits 20 | . 4 2 14 Critical Kills . | . . . . Critical Parts Destroyed . | . . . . Critical Strikes . | . . . . Melee Attacks 4 | . . 3 1 Impact 4 | . . 3 1 Slashing . | . . . . Piercing . | . . . . Sneak Attacks . | . . . . Combat Hostiles . | . . . . Follow-up Attacks . | . . . . Damage Inflicted 1355 | 10 96 124 1125 Guns 128 | . 96 32 . Cannons 412 | . . . 412 Explosions 780 | . . 67 713 Melee 25 | . . 25 . Ramming 10 | 10 . . . Kinetic 1125 | . . . 1125 Thermal 67 | . . 67 . Explosive . | . . . . Electromagnetic 128 | . 96 32 . Impact 25 | . . 25 . Slashing . | . . . . Piercing . | . . . . Highest Corruption . | . . . . Average Corruption . | . . . . Corruption Purged . | . . . . Corruption Blocked . | . . . . Overload Shots . | . . . . Overflow Damage 5 | . . 5 . Projectiles . | . . . . Explosions . | . . . . Melee 5 | . . 5 . Knockbacks 7 | . . . 7 Impact . | . . . . Kinetic 7 | . . . 7 Secondary . | . . . . Self-Inflicted Damage 5 | 5 . . . Shots . | . . . . Rammed 1 | 1 . . . Targets Rammed 1 | 1 . . . Kicked . | . . . . Crushed . | . . . . Highest Temperature 77 | . 77 . . Average Temperature 47 | . 47 . . Received Heat Transfer 198 | . 105 . 93 Siege Activations . | . . . . Martial Activations . | . . . . Shielding Activations . | . . . . Robots Disrupted . | . . . . Combat Hostiles . | . . . . Robots Corrupted 1 | . . 1 . Combat Hostiles 1 | . . 1 . Parts Fried 1 | . . 1 . Impact Corruptions 1 | . . 1 . Robots Melted . | . . . . Combat Hostiles . | . . . . Parts Melted 1 | . . 1 . Heat Transferred 50 | . . 50 . Parts Sabotaged . | . . . . Parts Stolen . | . . . . Parts Stripped . | . . . . Power Chain Reactions 1 | . . 1 . Alert | -11 -10 -10 -10 ------- Run | Yrd Mat Min Sub Maximum Alert Level . | . . . . Low Security (%) 100 | 100 100 100 . Level 1 . | . . . . Level 2 . | . . . . Level 3 . | . . . . Level 4 . | . . . . Level 5 . | . . . . High Security . | . . . . Max Security . | . . . . Peak Influence 61 | . 35 61 . Initial 9 | . . 9 . Average 9 | . 9 11 . Influence Increases 176 | . 105 71 . Destroy 0b10 Robot/C 120 | . 60 60 . Destroy Leader 20 | . 10 10 . Successful Hack 5 | . 5 . . Destroy Structure 1 | . . 1 . Lose Combat Pursuer 30 | . 30 . . Influence Decreases 176 | . 80 96 . Entered New Map 16 | . . 16 . Time Decay 130 | . 60 70 . Lost Part 30 | . 20 10 . Squads Dispatched 1 | . 1 . . Investigation . | . . . . Extermination . | . . . . Reinforcement 1 | . 1 . . Assault . | . . . . Garrison . | . . . . Intercept . | . . . . Searches Triggered . | . . . . Construction Impeded . | . . . . Haulers Reinforced . | . . . . Active Scanning Responses . | . . . . Cargo Convoy Interrupts . | . . . . Stealth | -11 -10 -10 -10 --------- Run | Yrd Mat Min Sub Distress Signals . | . . . . Communications Jammed . | . . . . Distress Signals . | . . . . Times Spotted 23 | . 9 3 11 Peak Tracking Total 3 | . 3 3 3 Tactical Retreats 2 | . 2 . . Traps | -11 -10 -10 -10 ------- Run | Yrd Mat Min Sub Traps Triggered . | . . . . Indirectly . | . . . . Trap Hack Attempts . | . . . . Triggered . | . . . . Disarmed . | . . . . Reprogrammed . | . . . . Reused . | . . . . Traps Extracted . | . . . . Installed . | . . . . Triggered . | . . . . Machines | -11 -10 -10 -10 ---------- Run | Yrd Mat Min Sub Machines Disabled 1 | . . . 1 Max in Single Turn 1 | . . . 1 Machines Repaired . | . . . . Machines Dismantled . | . . . . Machines Sabotaged . | . . . . Overloaded Fab Kills . | . . . . Hacking | -11 -10 -10 -10 --------- Run | Yrd Mat Min Sub Machines Accessed 6 | . 3 2 1 Terminals 4 | . 3 1 . Fabricators . | . . . . Repair Stations . | . . . . Recycling Units . | . . . . Scanalyzers . | . . . . Garrison Access . | . . . . Total Hacks 15 | . 10 4 1 Successful 9 | . 7 1 1 Failed 6 | . 3 3 . Catastrophic 1 | . 1 . . Database Lockouts . | . . . . Manual 10 | . 10 . . Terminals 13 | . 10 3 . Fabricators . | . . . . Repair Stations . | . . . . Recycling Units . | . . . . Scanalyzers . | . . . . Garrison Access . | . . . . Terminal Hacks 3 | . 1 1 1 Open Door 1 | . . 1 . Terminal Index 1 | . 1 . . Proto ID Catalog 1 | . . . 1 Fabricator Hacks . | . . . . Repair Station Hacks . | . . . . Recycling Unit Hacks . | . . . . Scanalyzer . | . . . . Garrison Access Hacks . | . . . . Unauthorized Hacks 6 | . 6 . . Terminals 6 | . 6 . . Botnet 2 | . 2 . . Operators 1 | . 1 . . Skim 3 | . 3 . . Fabricators . | . . . . Repair Stations . | . . . . Recycling Units . | . . . . Scanalyzers . | . . . . Garrison Access . | . . . . Data Cores Recovered . | . . . . Used . | . . . . Hacking Detections 4 | . 3 1 . Full Trace Events . | . . . . Feedback Events . | . . . . Feedback Blocked . | . . . . Robot Schematics Acquired . | . . . . Robots Built . | . . . . Authchips . | . . . . Time . | . . . . Total Robot Build Rating . | . . . . Part Schematics Acquired . | . . . . Parts Built . | . . . . Authchips . | . . . . Time . | . . . . Total Part Build Rating . | . . . . Parts Repaired . | . . . . Time . | . . . . Parts Recycled . | . . . . Recycled Matter . | . . . . Retrieved Matter . | . . . . Retrieved Components . | . . . . Parts Scanalyzed . | . . . . Part Schematics Acquired . | . . . . Parts Damaged . | . . . . Bothacking | -11 -10 -10 -10 ------------ Run | Yrd Mat Min Sub Used RIF Installer . | . . . . Robots Hacked . | . . . . Non-combat . | . . . . Combat . | . . . . Robot Hacks Applied . | . . . . Relay Couplers Released . | . . . . Fabnet Peak Effective % . | . . . . Robots Rewired . | . . . . Allies Hacked . | . . . . Hacks Repelled . | . . . . Allies | -11 -10 -10 -10 -------- Run | Yrd Mat Min Sub Total Allies 1 | . . 1 . Largest Group 1 | . . 1 1 Highest-Rated Group 31 | . . 31 31 Highest-Rated Ally 31 | . . 31 31 Total Orders 11 | . . . 11 EXPLORE 10 | . . . 10 RETURN 1 | . . . 1 Ally Attacks . | . . . . Total Damage . | . . . . Kills . | . . . . Allies Corrupted . | . . . . Allies Melted . | . . . . Intel | -11 -10 -10 -10 ------- Run | Yrd Mat Min Sub Active Infowar (turns) . | . . . . Robot Analysis Total . | . . . . Derelict Logs Recovered 3 | . . 1 2 Drone Launches 16 | . . . 16 Drone Recoveries . | . . . . Exploration | -11 -10 -10 -10 ------------- Run | Yrd Mat Min Sub Turns Passed 1596 | 56 258 349 933 Spaces Moved 1407 | 52 252 321 782 Core 2 | 2 . . . Treads . | . . . . Legs . | . . . . Wheels 1405 | 50 252 321 782 Hover . | . . . . Flight . | . . . . Fastest Speed 50 | 50 90 90 100 Average Speed 97 | 88 90 98 100 Slowest Speed 110 | 100 90 100 110 Overloaded Moves . | . . . . Propulsion Burnouts . | . . . . Robots Hopped . | . . . . Potential Cave-ins . | . . . . Cave-ins Triggered . | . . . . Exploration Rate (%) 46 | 3 52 70 61 Regions Visited 3 Branch Regions 2 Pre-discovered Areas 1 | . . 1 . Known Exits Taken . | . . . . Unknown Exits Taken 3 | 1 1 1 . Scrap Searched 4 | . . 1 3 Spaces Dug 1 | . . . 1 Terrain Destroyed 91 | . . 1 90 Melee 1 | . . . 1 Projectile . | . . . . AOE 90 | . . 1 89 Terrain Rammed . | . . . . Walls Destroyed . | . . . . Machines Disabled . | . . . . Actions | -11 -10 -10 -10 --------- Run | Yrd Mat Min Sub Total 1546 | 58 271 342 875 Wait 47 | . 8 . 39 Move 1404 | 51 251 320 782 Hop . | . . . . Pick Up 14 | . 2 5 7 Fast Attach 11 | 6 1 2 2 Attach 6 | . . 3 3 Detach 2 | . . 1 1 Swap 6 | . . . 6 Drop 8 | . . 2 6 Fire 43 | . 9 6 28 Melee 4 | . . 3 1 Ram 1 | 1 . . . Kick . | . . . . Crush . | . . . . Escape Stasis . | . . . . Rewire . | . . . . Trap . | . . . . Miscellaneous . | . . . . Route ------- -11/Scrapyard -10/Materials -10/Mines (discovered 2 exits: [*Mat] / *Sub) -10/Subcaves (discovered 2 exits: [*Mat x2]) History --------- Turn | Location | Event 20 | -11/Scrapyard | Discovered new exit (range 14) 57 | -11/Scrapyard | Entered Materials 169 | -10/Materials | Discovered new exit (range 12) 301 | -10/Materials | Build established: Mutant 315 | -10/Materials | Entered Mines 455 | -10/Mines | Found the Drone Emporium 455 | -10/Mines | Learned location of Storage (-9) 458 | -10/Mines | Found Prototype Device 602 | -10/Mines | Discovered new exit (range 15) 614 | -10/Mines | Received a Mining Laser from a helpful Derelict 656 | -10/Mines | Discovered new exit (range 3) 659 | -10/Mines | Identified Decoy Drone Bay 664 | -10/Mines | Entered Subcaves 664 | -10/Subcaves | Accompanied by 1 ally 665 | -10/Subcaves | Approached by a straggling Scientist 677 | -10/Subcaves | Discovered new exit (range 49) 684 | -10/Subcaves | Discovered new exit (range 84) 714 | -10/Subcaves | Learned location of 1 exit from Materials 778 | -10/Subcaves | Shifting Twisted Machinery released Battle Cannon 782 | -10/Subcaves | Shifting Twisted Machinery released Battle Cannon 839 | -10/Subcaves | Visited 4L-MR0's lab 852 | -10/Subcaves | Found Gun Armor 923 | -10/Subcaves | Shifting Twisted Machinery released Flamer 928 | -10/Subcaves | Shifting Twisted Machinery released Battle Cannon 1327 | -10/Subcaves | Core integrity fell below 50% 1524 | -10/Subcaves | A Subdweller sparked back to life 1524 | -10/Subcaves | A Subdweller sparked back to life 1524 | -10/Subcaves | A Subdweller sparked back to life 1537 | -10/Subcaves | Core integrity fell below 20% 1549 | -10/Subcaves | Learned Materials stockpile data 1597 | -10/Subcaves | Destroyed by 92-O32(R) with Subdweller Laser Last Messages --------------- 01130_ Acquired 1 matter. 01166_ FZ-N5I(R) destroyed. 01166_ EO-7WD(R) destroyed. 01320_ HK-D6Y(R) destroyed. 01324_ DU-GH9(R) knocked back. 01327_ Destroyed Scrap Shield. 01330_ DU-GH9(R) destroyed. 01524_ 92-O32(R) creaks and sparks as it begins to move. 01524_ Q9-ZHA(R) creaks and sparks as it begins to move. 01524_ KL-2Q0(R) creaks and sparks as it begins to move. 01525_ Q9-ZHA(R) destroyed. 01529_ KL-2Q0(R) affixes Scrap Shield Fragment to Scrap Shield. 01531_ 92-O32(R) affixes Scrap Shield Fragment to Scrap Shield. 01532_ KL-2Q0(R) knocked back. 01549_ Acquired derelict log, extracted data. Data stored: Materials stockpile data. 01559_ Com. Wheel destroyed. 01560_ Battle Cannon destroyed. 01570_ Com. Wheel destroyed. 01590_ Subatomizers dissect the Sub. Beam Cannon. Map ----- +----------------------------------------------------+ | ?????????????????????????????????????????????????? | | ?????????????????????????????????????????????????? | | ?????????????????????????????????????????????????? | | ?????????????????????????????????????????????????? | | ?????????????????????????????????????????????????? | | ?????????????????????????????????????????????????? | | ?????????????????????????????????????????????????? | | ?????????????????????????????????????????????????? | | ?????????????????????????????????????????????????? | | ?????????????????????????????????????????????????? | | ?????????????????????????????????????????????????? | | ?????????????????????????????????????????????????? | | ???????????????????????????????#######???????????? | | ????????????????????###???????## ##??????????? | | ????????????????????# ##??????# #??????????? | | ????????????????????# ##?????# #??????????? | | ????????????????????# ##????# #??????????? | | ????????#####???????# #?????# """ #??????????? | | ??##???## ##??????# #?????## " " #??????????? | | ??# #?## ##????## #??????# "####??????????? | | ??# ## ##??## ##?????# #?????????????? | | ??# #### #??#### #?????????????? | | ??# RR ####"## ##????????????? | | ??# ### ## """ ##???????????? | | ??# #?## ## ##??????????? | | ??## ###??# @ ###????????? | | ???# ##????## ##???????? | | ???# #??????## ### ; !] #???????? | | ???## ##??????#######?####; &%& ##???????? | | ????## #??????# # ## ### &%= ###????????? | | ????## #??????## " & ###????????? | | ????# ##????### "" #????????? | | ????## ##????# ## # #" ####?????? | | ?????# ####### #### ### " #?????? | | ??#### ## ### # ####### ""##????? | | ??# ## ### ###??### ## ##???? | | ??# ### ## ##???## ### #???? | | ??# ## ##???# ##""" ##???? | | ??# ## ### ## ##??# """""" #????? | | ??## ### #?# ### ##?# " """ ###??? | | ???# ##?# ###" #?# ##?? | | ???# ##### #" % #?## ##? | | ???# ## " &= ##??## ## | | ???# ## % % ##????##### ## | | ???# ! %#### #?????????## ## | | ???## ## ""#?## ##?????????####### % | | ????# ## "" #?# #???????????????## | | ???## ### ""##### #????????????????# | | ??## #?# ### ## ##???????????# ## | | ??# #?### ### ##????????????# | +----------------------------------------------------+ Best States ------------- Heat Dissipation 39 Energy Generation 10 Energy Capacity 250 Matter Stores 300 Matter Capacity 300 Sight Range 16 Terrain Scan Density 10 Evasion (%) 42 Item Schematics ----------------- None Robot Schematics ------------------ None Fabricated ------------ Nothing Repaired ---------- Nothing Alien Tech Used ----------------- None Achievements -------------- None Challenges ------------ None Game ------ Seed FissionAnalysisComputer Manual? 0 Play Time 00:18:33 Cumulative 228.7 hours Start 2025.05.13 @ 22:04:57 End 2025.05.13 @ 22:22:27 Sessions 1 Manual Loads 0 Difficulty Rogue Special Mode None Game No. 107 Rogue 64 Adventurer 43 Explorer 0 Win Type - Total 6 Types 4/0/1/0/0/0/0/1/0/0 Lore% 70 Gallery% 66 Achievement% 61 Wizard Run 0 Options --------- Layout 0 ASCII 0 Keyboard 0 Movement Mouse Keybinds 0 Fullscreen 1 Font 24/Smallcaps Map View 76x50 Zoom Use 0% Tactical HUD 1 Map Filters NONE Filters NONE Steam 1 RUN: 541a922c-ebf3-4d60-b208-4c0fb02d4188